[Event "Titled Tuesday Blitz February 14 Early 2023"]
[White "Dylag, Emilia"]
[Black "Boder, Jan"]
[WhiteFideId "21805172"]
[BlackFideId "16243226"]
[WhiteElo "2095"]
[BlackElo "2294"]
[Result "0-1"]
[Round "04"]
[TimeControl "180+2"]
[Date "2023.02.15"]
[WhiteClock "0:00:01"]
[BlackClock "0:00:15"]

1. d4 {[%clk 0:03:00]}  Nf6 {[%clk 0:02:57]} 2. c4 {[%clk 0:02:59]}  c5 {[%clk 0:02:57]} 3. d5 {[%clk 0:02:58]}  b5 {[%clk 0:02:56]} 4. cxb5 {[%clk 0:02:58]}  a6 {[%clk 0:02:57]} 5. bxa6 {[%clk 0:02:56]}  g6 {[%clk 0:02:57]} 6. Nc3 {[%clk 0:02:53]}  Bg7 {[%clk 0:02:56]} 7. e4 {[%clk 0:02:53]}  O-O {[%clk 0:02:56]} 8. a7 {[%clk 0:02:44]}  Rxa7 {[%clk 0:02:56]} 9. g3 {[%clk 0:02:45]}  Qa5 {[%clk 0:02:55]} 10. Bg2 {[%clk 0:02:44]}  d6 {[%clk 0:02:56]} 11. Ne2 {[%clk 0:02:42]}  Ba6 {[%clk 0:02:38]} 12. O-O {[%clk 0:02:40]}  Nbd7 {[%clk 0:02:38]} 13. f4 {[%clk 0:02:35]}  Rb8 {[%clk 0:02:34]} 14. Qc2 {[%clk 0:02:21]}  Qb6 {[%clk 0:02:31]} 15. Kh1 {[%clk 0:02:17]}  Ne8 {[%clk 0:02:15]} 16. a4 {[%clk 0:02:03]}  Qb3 {[%clk 0:02:00]} 17. Qd2 {[%clk 0:01:56]}  Qc4 {[%clk 0:01:42]} 18. Ra3 {[%clk 0:01:44]}  Rb3 {[%clk 0:01:34]} 19. Rxb3 {[%clk 0:01:41]}  Qxb3 {[%clk 0:01:35]} 20. Re1 {[%clk 0:01:28]}  Nb6 {[%clk 0:01:10]} 21. Ng1 {[%clk 0:01:01]}  Nxa4 {[%clk 0:01:05]} 22. Nxa4 {[%clk 0:00:46]}  Qxa4 {[%clk 0:01:06]} 23. e5 {[%clk 0:00:45]}  Bc4 {[%clk 0:00:53]} 24. Nh3 {[%clk 0:00:35]}  h6 {[%clk 0:00:47]} 25. Nf2 {[%clk 0:00:22]}  Qa5 {[%clk 0:00:41]} 26. Qd1 {[%clk 0:00:19]}  Qb4 {[%clk 0:00:29]} 27. Ne4 {[%clk 0:00:16]}  Ra1 {[%clk 0:00:27]} 28. exd6 {[%clk 0:00:09]}  Nxd6 {[%clk 0:00:28]} 29. Nxd6 {[%clk 0:00:09]}  exd6 {[%clk 0:00:28]} 30. Bf3 {[%clk 0:00:03]}  Bxb2 {[%clk 0:00:20]} 31. Qd2 {[%clk 0:00:01]}  Rxc1 {[%clk 0:00:15]} 0-1


[Site "https://www.chess.com"]

[Event "Titled Tuesday Blitz February 14 Early 2023"]
[White "Pourkashiyan, Atousa"]
[Black "mestrefeitosa19"]
[WhiteFideId "12502014"]
[WhiteElo "2282"]
[BlackElo "2211"]
[Result "1-0"]
[Round "04"]
[TimeControl "180+2"]
[Date "2023.02.15"]
[WhiteClock "0:01:34"]
[BlackClock "0:01:31"]

1. e4 {[%clk 0:02:47]}  e5 {[%clk 0:02:59]} 2. Nf3 {[%clk 0:02:44]}  Nc6 {[%clk 0:02:59]} 3. Bb5 {[%clk 0:02:43]}  Nd4 {[%clk 0:02:59]} 4. Nxd4 {[%clk 0:02:43]}  exd4 {[%clk 0:03:00]} 5. O-O {[%clk 0:02:42]}  c6 {[%clk 0:03:00]} 6. Bc4 {[%clk 0:02:42]}  Nf6 {[%clk 0:02:59]} 7. d3 {[%clk 0:02:42]}  d5 {[%clk 0:02:54]} 8. exd5 {[%clk 0:02:40]}  Nxd5 {[%clk 0:02:48]} 9. Re1+ {[%clk 0:02:35]}  Be6 {[%clk 0:02:47]} 10. Nd2 {[%clk 0:02:25]}  Bc5 {[%clk 0:02:32]} 11. Ne4 {[%clk 0:02:18]}  Bb6 {[%clk 0:02:30]} 12. Ng5 {[%clk 0:02:18]}  O-O {[%clk 0:02:16]} 13. Qh5 {[%clk 0:02:15]}  h6 {[%clk 0:02:11]} 14. Nxe6 {[%clk 0:02:07]}  fxe6 {[%clk 0:02:10]} 15. Rxe6 {[%clk 0:02:07]}  Rf6 {[%clk 0:01:53]} 16. Rxf6 {[%clk 0:01:54]}  Qxf6 {[%clk 0:01:52]} 17. Bxd5+ {[%clk 0:01:54]}  cxd5 {[%clk 0:01:53]} 18. Qxd5+ {[%clk 0:01:54]}  Kh8 {[%clk 0:01:52]} 19. Bd2 {[%clk 0:01:52]}  Rf8 {[%clk 0:01:46]} 20. Rf1 {[%clk 0:01:52]}  Bc7 {[%clk 0:01:33]} 21. Qxb7 {[%clk 0:01:47]}  Qd6 {[%clk 0:01:33]} 22. g3 {[%clk 0:01:46]}  Rb8 {[%clk 0:01:32]} 23. Qxa7 {[%clk 0:01:35]}  Rxb2 {[%clk 0:01:31]} 24. Bf4 {[%clk 0:01:34]} 1-0


[Site "https://www.chess.com"]

[Event "Titled Tuesday Blitz February 14 Early 2023"]
[White "Skaric, Djuro"]
[Black "ritanovikova"]
[WhiteFideId "934569"]
[WhiteElo "2334"]
[BlackElo "2179"]
[Result "1-0"]
[Round "04"]
[TimeControl "180+2"]
[Date "2023.02.15"]
[WhiteClock "0:02:11"]
[BlackClock "0:01:05"]

1. g3 {[%clk 0:03:00]}  Nf6 {[%clk 0:02:59]} 2. Bg2 {[%clk 0:03:00]}  d6 {[%clk 0:02:59]} 3. d3 {[%clk 0:03:00]}  g6 {[%clk 0:02:59]} 4. e4 {[%clk 0:03:01]}  Bg7 {[%clk 0:02:59]} 5. Nc3 {[%clk 0:03:01]}  O-O {[%clk 0:03:00]} 6. f4 {[%clk 0:03:02]}  c5 {[%clk 0:02:57]} 7. Nf3 {[%clk 0:03:02]}  Nc6 {[%clk 0:02:57]} 8. O-O {[%clk 0:03:02]}  a6 {[%clk 0:02:57]} 9. h3 {[%clk 0:03:03]}  h5 {[%clk 0:02:56]} 10. Ng5 {[%clk 0:02:59]}  Rb8 {[%clk 0:02:53]} 11. a4 {[%clk 0:02:59]}  b5 {[%clk 0:02:52]} 12. axb5 {[%clk 0:02:59]}  axb5 {[%clk 0:02:53]} 13. e5 {[%clk 0:02:59]}  Nxe5 {[%clk 0:02:40]} 14. fxe5 {[%clk 0:02:59]}  dxe5 {[%clk 0:02:41]} 15. Nce4 {[%clk 0:02:58]}  Ne8 {[%clk 0:02:31]} 16. Be3 {[%clk 0:02:57]}  f6 {[%clk 0:02:24]} 17. Nf3 {[%clk 0:02:56]}  c4 {[%clk 0:02:18]} 18. Nh4 {[%clk 0:02:54]}  Kh7 {[%clk 0:02:14]} 19. g4 {[%clk 0:02:47]}  cxd3 {[%clk 0:02:09]} 20. cxd3 {[%clk 0:02:47]}  hxg4 {[%clk 0:02:00]} 21. hxg4 {[%clk 0:02:45]}  Nd6 {[%clk 0:01:51]} 22. g5 {[%clk 0:02:37]}  Nf5 {[%clk 0:01:46]} 23. Nxf5 {[%clk 0:02:35]}  Bxf5 {[%clk 0:01:47]} 24. Rxf5 {[%clk 0:02:34]}  gxf5 {[%clk 0:01:40]} 25. Qh5+ {[%clk 0:02:34]}  Kg8 {[%clk 0:01:40]} 26. g6 {[%clk 0:02:34]}  Re8 {[%clk 0:01:38]} 27. Nc5 {[%clk 0:02:18]}  Qd6 {[%clk 0:01:18]} 28. Qh7+ {[%clk 0:02:16]}  Kf8 {[%clk 0:01:18]} 29. Ra6 {[%clk 0:02:12]}  Qc7 {[%clk 0:01:05]} 30. Ne6# {[%clk 0:02:11]} 1-0


[Site "https://www.chess.com"]

[Event "Titled Tuesday Blitz February 14 Early 2023"]
[White "Hertlein, Irena"]
[Black "Vifleemskaia, Svetlana"]
[WhiteFideId "21817618"]
[BlackFideId "4129490"]
[WhiteElo "1994"]
[BlackElo "1971"]
[Result "0-1"]
[Round "04"]
[TimeControl "180+2"]
[Date "2023.02.15"]
[WhiteClock "0:02:24"]
[BlackClock "0:02:28"]

1. Nf3 {[%clk 0:02:59]}  Nf6 {[%clk 0:02:57]} 2. c4 {[%clk 0:02:58]}  e6 {[%clk 0:02:56]} 3. b3 {[%clk 0:02:58]}  d5 {[%clk 0:02:56]} 4. Bb2 {[%clk 0:02:58]}  dxc4 {[%clk 0:02:53]} 5. bxc4 {[%clk 0:02:58]}  c5 {[%clk 0:02:54]} 6. g3 {[%clk 0:02:52]}  Nc6 {[%clk 0:02:54]} 7. Bg2 {[%clk 0:02:52]}  Be7 {[%clk 0:02:55]} 8. O-O {[%clk 0:02:52]}  O-O {[%clk 0:02:55]} 9. e3 {[%clk 0:02:52]}  Qd3 {[%clk 0:02:53]} 10. Qb3 {[%clk 0:02:47]}  Rd8 {[%clk 0:02:51]} 11. Nc3 {[%clk 0:02:42]}  Na5 {[%clk 0:02:49]} 12. Qa4 {[%clk 0:02:37]}  Nxc4 {[%clk 0:02:48]} 13. Rfd1 {[%clk 0:02:33]}  Nxb2 {[%clk 0:02:48]} 14. Bf1 {[%clk 0:02:30]}  Nxa4 {[%clk 0:02:44]} 15. Bxd3 {[%clk 0:02:30]}  Rxd3 {[%clk 0:02:38]} 16. Nxa4 {[%clk 0:02:30]}  b6 {[%clk 0:02:39]} 17. Ne5 {[%clk 0:02:29]}  Rd8 {[%clk 0:02:38]} 18. Nc6 {[%clk 0:02:29]}  Re8 {[%clk 0:02:38]} 19. Nxe7+ {[%clk 0:02:28]}  Rxe7 {[%clk 0:02:36]} 20. d4 {[%clk 0:02:29]}  cxd4 {[%clk 0:02:32]} 21. Rxd4 {[%clk 0:02:28]}  Bb7 {[%clk 0:02:32]} 22. Rad1 {[%clk 0:02:28]}  Bc6 {[%clk 0:02:29]} 23. Nc3 {[%clk 0:02:24]}  Rd7 {[%clk 0:02:28]} 0-1


[Site "https://www.chess.com"]

[Event "Titled Tuesday Blitz February 14 Early 2023"]
[White "Gedgafov, Chamal"]
[Black "Hernandez Bonilla, Amelia"]
[WhiteFideId "34130621"]
[BlackFideId "3900193"]
[WhiteElo "2118"]
[BlackElo "1960"]
[Result "1-0"]
[Round "04"]
[TimeControl "180+2"]
[Date "2023.02.15"]
[WhiteClock "0:00:02"]
[BlackClock "0:00:03"]

1. d4 {[%clk 0:02:56]}  Nf6 {[%clk 0:02:59]} 2. c4 {[%clk 0:02:56]}  e6 {[%clk 0:02:58]} 3. Nf3 {[%clk 0:02:55]}  d5 {[%clk 0:02:57]} 4. Nc3 {[%clk 0:02:54]}  dxc4 {[%clk 0:02:52]} 5. e4 {[%clk 0:02:53]}  a6 {[%clk 0:02:50]} 6. a4 {[%clk 0:02:48]}  Bb4 {[%clk 0:02:41]} 7. e5 {[%clk 0:02:47]}  Nd5 {[%clk 0:02:41]} 8. Bd2 {[%clk 0:02:47]}  Bxc3 {[%clk 0:02:31]} 9. bxc3 {[%clk 0:02:48]}  O-O {[%clk 0:02:13]} 10. Bxc4 {[%clk 0:02:48]}  Nd7 {[%clk 0:02:07]} 11. O-O {[%clk 0:02:47]}  c5 {[%clk 0:02:00]} 12. Qe2 {[%clk 0:02:43]}  cxd4 {[%clk 0:01:57]} 13. cxd4 {[%clk 0:02:42]}  b6 {[%clk 0:01:45]} 14. Bd3 {[%clk 0:02:34]}  Re8 {[%clk 0:01:26]} 15. Bxh7+ {[%clk 0:02:24]}  Kxh7 {[%clk 0:01:25]} 16. Ng5+ {[%clk 0:02:25]}  Kg6 {[%clk 0:01:20]} 17. Qe4+ {[%clk 0:02:13]}  f5 {[%clk 0:01:14]} 18. exf6+ {[%clk 0:02:11]}  Kxf6 {[%clk 0:01:14]} 19. Qf3+ {[%clk 0:01:49]}  Ke7 {[%clk 0:01:11]} 20. Qf7+ {[%clk 0:01:16]}  Kd6 {[%clk 0:01:09]} 21. Bf4+ {[%clk 0:01:15]}  Nxf4 {[%clk 0:01:08]} 22. Qxf4+ {[%clk 0:01:15]}  Kc6 {[%clk 0:00:56]} 23. Rac1+ {[%clk 0:01:11]}  Kb7 {[%clk 0:00:56]} 24. Qe4+ {[%clk 0:01:01]}  Ka7 {[%clk 0:00:56]} 25. Nxe6 {[%clk 0:00:56]}  Rxe6 {[%clk 0:00:33]} 26. Qxe6 {[%clk 0:00:55]}  Bb7 {[%clk 0:00:29]} 27. Rb1 {[%clk 0:00:43]}  Nf6 {[%clk 0:00:26]} 28. Rfd1 {[%clk 0:00:32]}  Bd5 {[%clk 0:00:23]} 29. Qe3 {[%clk 0:00:27]}  Qd7 {[%clk 0:00:20]} 30. f3 {[%clk 0:00:26]}  Re8 {[%clk 0:00:19]} 31. Qc3 {[%clk 0:00:22]}  Bb7 {[%clk 0:00:17]} 32. a5 {[%clk 0:00:22]}  b5 {[%clk 0:00:15]} 33. Qc5+ {[%clk 0:00:20]}  Ka8 {[%clk 0:00:15]} 34. Rbc1 {[%clk 0:00:21]}  Nd5 {[%clk 0:00:14]} 35. Qc2 {[%clk 0:00:16]}  Qe7 {[%clk 0:00:11]} 36. h3 {[%clk 0:00:16]}  Qb4 {[%clk 0:00:11]} 37. Qf5 {[%clk 0:00:14]}  Qxa5 {[%clk 0:00:10]} 38. Qg6 {[%clk 0:00:13]}  Re2 {[%clk 0:00:09]} 39. Qxg7 {[%clk 0:00:13]}  Qa2 {[%clk 0:00:08]} 40. Qg8+ {[%clk 0:00:09]}  Ka7 {[%clk 0:00:08]} 41. Re1 {[%clk 0:00:08]}  Nf4 {[%clk 0:00:07]} 42. Qxa2 {[%clk 0:00:07]}  Rxa2 {[%clk 0:00:06]} 43. Re7 {[%clk 0:00:04]}  Kb6 {[%clk 0:00:03]} 44. Rg7 {[%clk 0:00:02]}  Ne2+ {[%clk 0:00:02]} 45. Kh2 {[%clk 0:00:01]}  Nxc1 {[%clk 0:00:03]} 46. h4 {[%clk 0:00:02]} 1-0


[Site "https://www.chess.com"]

[Event "Titled Tuesday Blitz February 14 Early 2023"]
[White "Nakamura, Hikaru"]
[Black "Yeletsky, Ivan"]
[WhiteFideId "2016192"]
[BlackFideId "24180327"]
[WhiteElo "2775"]
[BlackElo "2494"]
[Result "1-0"]
[Round "05"]
[TimeControl "180+2"]
[Date "2023.02.15"]
[WhiteClock "0:00:17"]
[BlackClock "0:00:02"]

1. Nf3 {[%clk 0:03:00]}  c5 {[%clk 0:02:58]} 2. e4 {[%clk 0:02:59]}  d6 {[%clk 0:02:58]} 3. c3 {[%clk 0:02:55]}  Nf6 {[%clk 0:02:58]} 4. h3 {[%clk 0:02:55]}  Nc6 {[%clk 0:02:56]} 5. Bd3 {[%clk 0:02:54]}  g5 {[%clk 0:02:56]} 6. Bc2 {[%clk 0:02:52]}  g4 {[%clk 0:02:57]} 7. hxg4 {[%clk 0:02:51]}  Bxg4 {[%clk 0:02:58]} 8. d3 {[%clk 0:02:51]}  Qc7 {[%clk 0:02:57]} 9. Be3 {[%clk 0:02:49]}  O-O-O {[%clk 0:02:51]} 10. Nbd2 {[%clk 0:02:47]}  h5 {[%clk 0:02:39]} 11. Qe2 {[%clk 0:02:47]}  e6 {[%clk 0:02:33]} 12. O-O-O {[%clk 0:02:45]}  d5 {[%clk 0:02:33]} 13. Kb1 {[%clk 0:02:38]}  Rg8 {[%clk 0:02:17]} 14. exd5 {[%clk 0:01:44]}  exd5 {[%clk 0:02:17]} 15. Nb3 {[%clk 0:01:41]}  d4 {[%clk 0:02:05]} 16. cxd4 {[%clk 0:01:40]}  cxd4 {[%clk 0:02:06]} 17. Bd2 {[%clk 0:01:40]}  Bd6 {[%clk 0:02:04]} 18. Rc1 {[%clk 0:01:40]}  Kb8 {[%clk 0:02:01]} 19. Qf1 {[%clk 0:01:37]}  Bxf3 {[%clk 0:01:55]} 20. gxf3 {[%clk 0:01:38]}  Bf4 {[%clk 0:01:55]} 21. Rh4 {[%clk 0:01:33]}  Bxd2 {[%clk 0:01:55]} 22. Nxd2 {[%clk 0:01:34]}  Qa5 {[%clk 0:01:30]} 23. Rd1 {[%clk 0:01:25]}  Nb4 {[%clk 0:01:21]} 24. Bb3 {[%clk 0:01:21]}  Qg5 {[%clk 0:01:21]} 25. Rh3 {[%clk 0:01:10]}  Qf5 {[%clk 0:01:21]} 26. Ne4 {[%clk 0:01:09]}  Nfd5 {[%clk 0:01:18]} 27. Ng3 {[%clk 0:00:58]}  Qxf3 {[%clk 0:01:04]} 28. Nxh5 {[%clk 0:00:58]}  Qf5 {[%clk 0:01:01]} 29. a3 {[%clk 0:00:56]}  Nc6 {[%clk 0:00:54]} 30. Ng3 {[%clk 0:00:52]}  Qe5 {[%clk 0:00:46]} 31. Re1 {[%clk 0:00:43]}  Qc7 {[%clk 0:00:44]} 32. Nh5 {[%clk 0:00:35]}  Nf4 {[%clk 0:00:35]} 33. Nxf4 {[%clk 0:00:35]}  Qxf4 {[%clk 0:00:36]} 34. Qe2 {[%clk 0:00:35]}  a6 {[%clk 0:00:35]} 35. Rf3 {[%clk 0:00:34]}  Qd6 {[%clk 0:00:33]} 36. Rxf7 {[%clk 0:00:33]}  Rg5 {[%clk 0:00:27]} 37. Qe6 {[%clk 0:00:23]}  Qc5 {[%clk 0:00:25]} 38. Ba4 {[%clk 0:00:19]}  Rd6 {[%clk 0:00:20]} 39. Qe8+ {[%clk 0:00:18]}  Ka7 {[%clk 0:00:14]} 40. Rc1 {[%clk 0:00:18]}  Qb6 {[%clk 0:00:10]} 41. Bxc6 {[%clk 0:00:18]}  Qb3 {[%clk 0:00:02]} 42. Rxb7+ {[%clk 0:00:17]} 1-0


[Site "https://www.chess.com"]

[Event "Titled Tuesday Blitz February 14 Early 2023"]
[White "Bok, Benjamin"]
[Black "Bacrot, Etienne"]
[WhiteFideId "1017063"]
[BlackFideId "605506"]
[WhiteElo "2607"]
[BlackElo "2667"]
[Result "1-0"]
[Round "05"]
[TimeControl "180+2"]
[Date "2023.02.15"]
[WhiteClock "0:00:08"]
[BlackClock "0:00:07"]

1. d4 {[%clk 0:03:00]}  d5 {[%clk 0:02:59]} 2. c4 {[%clk 0:03:00]}  e6 {[%clk 0:03:00]} 3. Nc3 {[%clk 0:03:00]}  Nf6 {[%clk 0:02:59]} 4. cxd5 {[%clk 0:03:00]}  exd5 {[%clk 0:03:00]} 5. Bg5 {[%clk 0:03:00]}  c6 {[%clk 0:03:01]} 6. e3 {[%clk 0:03:01]}  Bf5 {[%clk 0:03:01]} 7. Qf3 {[%clk 0:03:00]}  Bg6 {[%clk 0:02:59]} 8. Bxf6 {[%clk 0:03:00]}  Qxf6 {[%clk 0:02:59]} 9. Qxf6 {[%clk 0:03:00]}  gxf6 {[%clk 0:02:59]} 10. h4 {[%clk 0:03:01]}  h5 {[%clk 0:02:59]} 11. Kd2 {[%clk 0:03:01]}  Nd7 {[%clk 0:02:59]} 12. Nh3 {[%clk 0:02:56]}  Bd6 {[%clk 0:02:58]} 13. g3 {[%clk 0:02:55]}  f5 {[%clk 0:02:46]} 14. Bd3 {[%clk 0:02:50]}  Nf6 {[%clk 0:02:45]} 15. Rhc1 {[%clk 0:02:42]}  Kd7 {[%clk 0:02:35]} 16. Rab1 {[%clk 0:02:34]}  a5 {[%clk 0:02:34]} 17. Ke2 {[%clk 0:02:31]}  a4 {[%clk 0:02:30]} 18. Kf3 {[%clk 0:02:19]}  Ne4 {[%clk 0:02:25]} 19. Rc2 {[%clk 0:02:18]}  Nf6 {[%clk 0:01:41]} 20. Nf4 {[%clk 0:02:08]}  Rhe8 {[%clk 0:01:40]} 21. b4 {[%clk 0:01:37]}  axb3 {[%clk 0:01:37]} 22. axb3 {[%clk 0:01:37]}  Bb4 {[%clk 0:01:29]} 23. Na2 {[%clk 0:01:13]}  Bf8 {[%clk 0:01:28]} 24. b4 {[%clk 0:01:12]}  b5 {[%clk 0:01:26]} 25. Rbc1 {[%clk 0:00:50]}  Ra6 {[%clk 0:01:14]} 26. Nc3 {[%clk 0:00:24]}  Rb8 {[%clk 0:01:14]} 27. Rb1 {[%clk 0:00:13]}  Ra3 {[%clk 0:01:12]} 28. Bf1 {[%clk 0:00:10]}  Rb6 {[%clk 0:00:40]} 29. Nce2 {[%clk 0:00:10]}  Ne4 {[%clk 0:00:36]} 30. Nxg6 {[%clk 0:00:09]}  fxg6 {[%clk 0:00:35]} 31. Nf4 {[%clk 0:00:10]}  Nc3 {[%clk 0:00:27]} 32. Rbc1 {[%clk 0:00:07]}  Bxb4 {[%clk 0:00:26]} 33. Nxg6 {[%clk 0:00:08]}  Ba5 {[%clk 0:00:21]} 34. Bh3 {[%clk 0:00:08]}  b4 {[%clk 0:00:16]} 35. Bxf5+ {[%clk 0:00:08]}  Kd6 {[%clk 0:00:16]} 36. Ne5 {[%clk 0:00:08]}  Rb8 {[%clk 0:00:11]} 37. Kg2 {[%clk 0:00:07]}  Rf8 {[%clk 0:00:11]} 38. Bh3 {[%clk 0:00:07]}  b3 {[%clk 0:00:10]} 39. Rxc3 {[%clk 0:00:06]}  Bxc3 {[%clk 0:00:10]} 40. Rxc3 {[%clk 0:00:07]}  Ra2 {[%clk 0:00:08]} 41. Rxc6+ {[%clk 0:00:08]}  Ke7 {[%clk 0:00:08]} 42. Ng6+ {[%clk 0:00:08]}  Kf7 {[%clk 0:00:07]} 43. Nxf8 {[%clk 0:00:08]} 1-0


[Site "https://www.chess.com"]

[Event "Titled Tuesday Blitz February 14 Early 2023"]
[White "Indjic, Aleksandar"]
[Black "Sanal, Vahap"]
[WhiteFideId "911925"]
[BlackFideId "6300545"]
[WhiteElo "2618"]
[BlackElo "2600"]
[Result "1/2-1/2"]
[Round "05"]
[TimeControl "180+2"]
[Date "2023.02.15"]
[WhiteClock "0:00:21"]
[BlackClock "0:00:04"]

1. d4 {[%clk 0:03:00]}  d5 {[%clk 0:02:56]} 2. c4 {[%clk 0:03:01]}  c6 {[%clk 0:02:55]} 3. Nf3 {[%clk 0:03:01]}  Nf6 {[%clk 0:02:55]} 4. Nc3 {[%clk 0:03:02]}  e6 {[%clk 0:02:55]} 5. Qb3 {[%clk 0:03:00]}  Nbd7 {[%clk 0:02:52]} 6. Bf4 {[%clk 0:02:59]}  Be7 {[%clk 0:02:52]} 7. e3 {[%clk 0:02:58]}  O-O {[%clk 0:02:52]} 8. h3 {[%clk 0:02:56]}  a6 {[%clk 0:02:41]} 9. cxd5 {[%clk 0:02:51]}  exd5 {[%clk 0:02:38]} 10. Bd3 {[%clk 0:02:49]}  Re8 {[%clk 0:02:39]} 11. Qc2 {[%clk 0:02:48]}  Nf8 {[%clk 0:02:38]} 12. Ne5 {[%clk 0:02:48]}  Ng6 {[%clk 0:02:35]} 13. Bh2 {[%clk 0:02:48]}  Bd6 {[%clk 0:02:29]} 14. f4 {[%clk 0:02:47]}  c5 {[%clk 0:02:30]} 15. O-O {[%clk 0:02:46]}  c4 {[%clk 0:02:16]} 16. Be2 {[%clk 0:02:42]}  b5 {[%clk 0:02:15]} 17. a3 {[%clk 0:02:41]}  Bb7 {[%clk 0:02:05]} 18. g4 {[%clk 0:02:29]}  Rc8 {[%clk 0:01:57]} 19. Bf3 {[%clk 0:02:24]}  Bb8 {[%clk 0:01:36]} 20. Bg3 {[%clk 0:02:16]}  Ne4 {[%clk 0:01:35]} 21. Bxe4 {[%clk 0:02:06]}  dxe4 {[%clk 0:01:35]} 22. Rad1 {[%clk 0:02:06]}  f6 {[%clk 0:01:33]} 23. Nxg6 {[%clk 0:01:58]}  hxg6 {[%clk 0:01:34]} 24. Kg2 {[%clk 0:01:58]}  Bd5 {[%clk 0:01:28]} 25. f5 {[%clk 0:01:57]}  Bxg3 {[%clk 0:01:26]} 26. Kxg3 {[%clk 0:01:58]}  g5 {[%clk 0:01:25]} 27. Kg2 {[%clk 0:01:54]}  Kf7 {[%clk 0:01:25]} 28. Rh1 {[%clk 0:01:41]}  Rh8 {[%clk 0:01:20]} 29. Qf2 {[%clk 0:01:30]}  Qd7 {[%clk 0:01:01]} 30. h4 {[%clk 0:01:29]}  gxh4 {[%clk 0:00:56]} 31. Rxh4 {[%clk 0:01:30]}  a5 {[%clk 0:00:57]} 32. Rdh1 {[%clk 0:01:21]}  Rxh4 {[%clk 0:00:57]} 33. Qxh4 {[%clk 0:01:22]}  b4 {[%clk 0:00:56]} 34. axb4 {[%clk 0:01:15]}  axb4 {[%clk 0:00:57]} 35. Nxd5 {[%clk 0:01:13]}  Qxd5 {[%clk 0:00:57]} 36. Qh7 {[%clk 0:01:13]}  c3 {[%clk 0:00:28]} 37. Qg6+ {[%clk 0:01:12]}  Kg8 {[%clk 0:00:28]} 38. bxc3 {[%clk 0:00:36]}  Qa2+ {[%clk 0:00:22]} 39. Kg3 {[%clk 0:00:35]}  Qe2 {[%clk 0:00:22]} 40. Rh7 {[%clk 0:00:22]}  Qxe3+ {[%clk 0:00:17]} 41. Kg2 {[%clk 0:00:20]}  Qf3+ {[%clk 0:00:11]} 42. Kg1 {[%clk 0:00:20]}  Qg3+ {[%clk 0:00:11]} 43. Kh1 {[%clk 0:00:21]}  Qf3+ {[%clk 0:00:08]} 44. Kg1 {[%clk 0:00:21]}  Rc7 {[%clk 0:00:07]} 45. Qh5 {[%clk 0:00:20]}  Qe3+ {[%clk 0:00:07]} 46. Kh1 {[%clk 0:00:20]}  Qe1+ {[%clk 0:00:07]} 47. Kh2 {[%clk 0:00:20]}  Qd2+ {[%clk 0:00:06]} 48. Kh1 {[%clk 0:00:20]}  Qe1+ {[%clk 0:00:03]} 49. Kh2 {[%clk 0:00:20]}  Qf2+ {[%clk 0:00:03]} 50. Kh1 {[%clk 0:00:21]}  Qf1+ {[%clk 0:00:04]} 51. Kh2 {[%clk 0:00:21]}  Qf4+ {[%clk 0:00:04]} 52. Kh1 {[%clk 0:00:21]}  Qf3+ {[%clk 0:00:04]} 53. Kg1 {[%clk 0:00:21]}  Qg3+ {[%clk 0:00:04]} 54. Kh1 {[%clk 0:00:21]}  Qf3+ {[%clk 0:00:04]} 55. Kg1 {[%clk 0:00:21]} 1/2-1/2


[Site "https://www.chess.com"]

[Event "Titled Tuesday Blitz February 14 Early 2023"]
[White "Vokhidov, Shamsiddin"]
[Black "Madaminov, Mukhiddin"]
[WhiteFideId "14204223"]
[BlackFideId "14210703"]
[WhiteElo "2586"]
[BlackElo "2422"]
[Result "1/2-1/2"]
[Round "05"]
[TimeControl "180+2"]
[Date "2023.02.15"]
[WhiteClock "0:00:32"]
[BlackClock "0:00:18"]

1. e4 {[%clk 0:03:00]}  e5 {[%clk 0:03:00]} 2. Nf3 {[%clk 0:03:01]}  Nc6 {[%clk 0:03:00]} 3. Bb5 {[%clk 0:03:02]}  a6 {[%clk 0:03:01]} 4. Ba4 {[%clk 0:03:02]}  Nf6 {[%clk 0:03:02]} 5. O-O {[%clk 0:03:03]}  Nxe4 {[%clk 0:03:02]} 6. d4 {[%clk 0:03:04]}  b5 {[%clk 0:03:03]} 7. Bb3 {[%clk 0:03:04]}  d5 {[%clk 0:03:04]} 8. dxe5 {[%clk 0:03:05]}  Be6 {[%clk 0:03:04]} 9. c3 {[%clk 0:03:05]}  Be7 {[%clk 0:03:05]} 10. Nbd2 {[%clk 0:03:06]}  O-O {[%clk 0:03:06]} 11. Bc2 {[%clk 0:03:06]}  f5 {[%clk 0:03:06]} 12. Nb3 {[%clk 0:03:06]}  Qd7 {[%clk 0:03:07]} 13. Nfd4 {[%clk 0:03:06]}  Nxd4 {[%clk 0:03:05]} 14. Nxd4 {[%clk 0:03:07]}  c5 {[%clk 0:03:06]} 15. Nxe6 {[%clk 0:03:07]}  Qxe6 {[%clk 0:03:07]} 16. f3 {[%clk 0:03:07]}  Ng5 {[%clk 0:03:07]} 17. a4 {[%clk 0:03:08]}  Rad8 {[%clk 0:03:07]} 18. axb5 {[%clk 0:03:08]}  axb5 {[%clk 0:03:08]} 19. Kh1 {[%clk 0:03:09]}  f4 {[%clk 0:03:07]} 20. b4 {[%clk 0:03:05]}  Qxe5 {[%clk 0:02:57]} 21. Re1 {[%clk 0:03:02]}  Qf6 {[%clk 0:02:57]} 22. Ra7 {[%clk 0:02:44]}  Rfe8 {[%clk 0:02:32]} 23. bxc5 {[%clk 0:02:27]}  Bxc5 {[%clk 0:02:32]} 24. Rxe8+ {[%clk 0:02:28]}  Rxe8 {[%clk 0:02:33]} 25. Qxd5+ {[%clk 0:02:28]}  Qf7 {[%clk 0:02:30]} 26. Be4 {[%clk 0:01:26]}  Bxa7 {[%clk 0:01:43]} 27. Qxg5 {[%clk 0:01:26]}  Qc4 {[%clk 0:01:36]} 28. h4 {[%clk 0:00:44]}  Qf1+ {[%clk 0:01:11]} 29. Kh2 {[%clk 0:00:43]}  Qxc1 {[%clk 0:01:08]} 30. Bxh7+ {[%clk 0:00:41]}  Kh8 {[%clk 0:01:04]} 31. Qh5 {[%clk 0:00:39]}  Qg1+ {[%clk 0:01:04]} 32. Kh3 {[%clk 0:00:39]}  Qh1+ {[%clk 0:01:05]} 33. Kg4 {[%clk 0:00:39]}  Qxg2+ {[%clk 0:01:05]} 34. Kf5 {[%clk 0:00:36]}  Qh3+ {[%clk 0:01:05]} 35. Kg5 {[%clk 0:00:35]}  Qg2+ {[%clk 0:00:46]} 36. Kf5 {[%clk 0:00:34]}  Qc2+ {[%clk 0:00:46]} 37. Kg4 {[%clk 0:00:32]}  Qg2+ {[%clk 0:00:18]} 38. Kf5 {[%clk 0:00:32]} 1/2-1/2


[Site "https://www.chess.com"]